[Event "MCR rapid mládeže 2023 U16"]
[Site "Harachov, Czech Republic"]
[Date "2023.09.09"]
[Round "4.31"]
[White "Trejbal, Jindrich"]
[Black "Bukovskij, Dmitri"]
[Result "1-0"]
[TimeControl "20min+5s/move"]
[WhiteElo "1088"]
[BlackElo "1291"]

1. f4 {[%clk 00:20:07]} {[%emt 00:00:02]} d5 {[%clk 00:20:08]} {[%emt
00:00:03]} 2. Nf3 {[%clk 00:20:09]} {[%emt 00:00:03]} Nc6 {[%clk 00:20:12]}
{[%emt 00:00:02]} 3. e3 {[%clk 00:20:04]} {[%emt 00:00:09]} Bg4 {[%clk
00:20:15]} {[%emt 00:00:02]} 4. d4 {[%clk 00:19:59]} {[%emt 00:00:09]} Nf6
{[%clk 00:20:17]} {[%emt 00:00:03]} 5. c3 {[%clk 00:19:39]} {[%emt 00:00:25]}
e6 {[%clk 00:20:20]} {[%emt 00:00:03]} 6. Bd3 {[%clk 00:19:39]} {[%emt
00:00:05]} Ne4 {[%clk 00:20:18]} {[%emt 00:00:07]} 7. O-O {[%clk 00:19:15]}
{[%emt 00:00:28]} Be7 {[%clk 00:20:19]} {[%emt 00:00:05]} 8. Nbd2 {[%clk
00:18:59]} {[%emt 00:00:21]} f5 {[%clk 00:20:20]} {[%emt 00:00:04]} 9. Qe1
{[%clk 00:18:49]} {[%emt 00:00:15]} Bxf3 {[%clk 00:20:14]} {[%emt 00:00:11]} 10.
Nxf3 {[%clk 00:18:32]} {[%emt 00:00:22]} Qd7 {[%clk 00:20:06]} {[%emt
00:00:11]} 11. Ne5 {[%clk 00:18:01]} Nxe5 {[%clk 00:20:06]} {[%emt 00:00:43]}
12. fxe5 {[%clk 00:18:00]} {[%emt 00:00:05]} O-O-O {[%clk 00:20:07]} {[%emt
00:00:05]} 13. Bxe4 {[%clk 00:17:09]} {[%emt 00:00:56]} fxe4 {[%clk 00:20:10]}
{[%emt 00:00:01]} 14. Qe2 {[%clk 00:15:49]} {[%emt 00:01:25]} Rhf8 {[%clk
00:20:03]} {[%emt 00:00:11]} 15. Bd2 {[%clk 00:15:20]} {[%emt 00:00:34]} Bg5
{[%clk 00:19:39]} {[%emt 00:00:29]} 16. Rxf8 {[%clk 00:14:24]} {[%emt
00:01:02]} Rxf8 {[%clk 00:19:42]} {[%emt 00:00:02]} 17. Rf1 {[%clk 00:14:26]}
{[%emt 00:00:03]} Rf7 {[%clk 00:19:11]} {[%emt 00:00:37]} 18. Rxf7 {[%clk
00:13:01]} {[%emt 00:01:29]} Qxf7 {[%clk 00:19:14]} {[%emt 00:00:03]} 19. Qf2
{[%clk 00:12:36]} {[%emt 00:00:28]} Qxf2+ {[%clk 00:18:52]} {[%emt 00:00:28]}
20. Kxf2 {[%clk 00:12:38]} {[%emt 00:00:03]} Kd7 {[%clk 00:18:56]} {[%emt
00:00:02]} 21. Kg3 {[%clk 00:12:28]} {[%emt 00:00:14]} Kc6 {[%clk 00:18:58]}
{[%emt 00:00:04]} 22. h4 {[%clk 00:11:50]} {[%emt 00:00:42]} Bh6 {[%clk
00:18:59]} {[%emt 00:00:05]} 23. Kg4 {[%clk 00:11:11]} {[%emt 00:00:43]} Kb5
{[%clk 00:19:02]} {[%emt 00:00:03]} 24. b3 {[%clk 00:10:06]} {[%emt 00:01:10]}
c5 {[%clk 00:18:56]} {[%emt 00:00:11]} 25. Kh5 {[%clk 00:09:40]} {[%emt
00:00:30]} c4 {[%clk 00:18:51]} {[%emt 00:00:10]} 26. g4 {[%clk 00:07:45]}
{[%emt 00:02:00]} cxb3 {[%clk 00:18:42]} {[%emt 00:00:15]} 27. axb3 {[%clk
00:07:49]} {[%emt 00:00:01]} a5 {[%clk 00:18:46]} {[%emt 00:00:01]} 28. g5
{[%clk 00:07:34]} {[%emt 00:00:19]} Bxg5 {[%clk 00:18:49]} {[%emt 00:00:02]} 29.
Kxg5 {[%emt 00:00:35]} a4 {[%emt 00:00:01]} 30. bxa4+ {[%clk 00:06:43]} {[%emt
00:00:20]} Kxa4 {[%clk 00:18:53]} {[%emt 00:00:02]} 31. Kg4 {[%clk 00:06:01]}
{[%emt 00:00:47]} Kb3 {[%clk 00:18:56]} {[%emt 00:00:02]} 32. Kg3 {[%clk
00:05:46]} {[%emt 00:00:19]} Kc2 {[%emt 00:00:03]} 33. Be1 {[%clk 00:05:44]}
{[%emt 00:00:05]} Kd1 {[%clk 00:19:04]} {[%emt 00:00:02]} 34. Kf2 {[%clk
00:05:16]} {[%emt 00:00:32]} b5 {[%clk 00:19:03]} {[%emt 00:00:07]} 35. Kf1
{[%clk 00:05:12]} {[%emt 00:00:08]} h5 {[%clk 00:18:53]} {[%emt 00:00:15]} 36.
Kf2 {[%clk 00:05:07]} {[%emt 00:00:10]} Kc2 {[%clk 00:18:54]} {[%emt 00:00:05]}
37. Ke2 {[%clk 00:05:07]} {[%emt 00:00:05]} Kc1 {[%clk 00:18:54]} {[%emt
00:00:05]} 38. Bd2+ {[%clk 00:04:24]} {[%emt 00:00:48]} Kc2 {[%clk 00:18:57]}
{[%emt 00:00:02]} 39. Ke1 {[%clk 00:04:25]} {[%emt 00:00:03]} Kd3 {[%clk
00:18:53]} {[%emt 00:00:10]} 40. Kd1 {[%clk 00:04:27]} {[%emt 00:00:02]} g6
{[%clk 00:18:56]} {[%emt 00:00:03]} 41. Ke1 {[%clk 00:04:24]} {[%emt 00:00:07]}
Kc2 {[%clk 00:18:45]} {[%emt 00:00:16]} 42. Ke2 {[%clk 00:04:28]} {[%emt
00:00:02]} Kb3 {[%clk 00:18:49]} {[%emt 00:00:01]} 43. Kd1 {[%clk 00:04:27]}
{[%emt 00:00:05]} Kb2 {[%clk 00:18:51]} {[%emt 00:00:04]} 44. Be1 {[%clk
00:04:09]} {[%emt 00:00:22]} Kb3 {[%clk 00:18:51]} {[%emt 00:00:06]} 45. Kc1
{[%clk 00:04:13]} {[%emt 00:00:01]} Ka2 {[%clk 00:18:21]} {[%emt 00:00:35]} 46.
Kc2 {[%clk 00:03:59]} {[%emt 00:00:19]} Ka3 {[%clk 00:18:25]} {[%emt 00:00:01]}
47. Bd2 {[%clk 00:03:55]} {[%emt 00:00:08]} Ka2 {[%clk 00:17:54]} {[%emt
00:00:36]} 48. Be1 {[%clk 00:03:24]} {[%emt 00:00:36]} Ka3 {[%clk 00:17:52]}
{[%emt 00:00:07]} 49. Bf2 {[%clk 00:03:17]} {[%emt 00:00:12]} b4 {[%clk
00:17:38]} {[%emt 00:00:20]} 50. cxb4 {[%clk 00:03:01]} {[%emt 00:00:21]} Kxb4
{[%clk 00:17:42]} {[%emt 00:00:01]} 51. Kb2 {[%clk 00:03:04]} {[%emt 00:00:02]}
Kc4 {[%clk 00:17:18]} {[%emt 00:00:29]} 52. Kc2 {[%clk 00:03:07]} {[%emt
00:00:01]} Kb4 {[%clk 00:17:13]} {[%emt 00:00:11]} 53. Be1+ {[%clk 00:03:03]}
{[%emt 00:00:08]} Ka4 {[%clk 00:17:11]} {[%emt 00:00:07]} 54. Bd2 {[%clk
00:02:51]} {[%emt 00:00:17]} Ka3 {[%clk 00:17:12]} {[%emt 00:00:05]} 55. Kc3
{[%clk 00:02:52]} {[%emt 00:00:04]} Ka4 {[%clk 00:17:15]} {[%emt 00:00:01]} 56.
Kb2 {[%clk 00:02:56]} {[%emt 00:00:02]} Kb5 {[%clk 00:17:12]} {[%emt 00:00:08]}
57. Kb3 {[%clk 00:02:59]} Kb6 {[%clk 00:17:12]} {[%emt 00:00:05]} 58. Kb4
{[%clk 00:03:01]} {[%emt 00:00:03]} Kc6 {[%clk 00:17:14]} {[%emt 00:00:04]} 59.
Ka5 {[%clk 00:02:59]} {[%emt 00:00:06]} Kd7 {[%clk 00:17:17]} {[%emt 00:00:03]}
60. Kb6 {[%clk 00:03:03]} {[%emt 00:00:02]} Ke7 {[%clk 00:17:21]} 61. Kc7
{[%clk 00:03:06]} {[%emt 00:00:02]} Kf7 {[%clk 00:17:25]} {[%emt 00:00:01]} 62.
Kd7 {[%clk 00:03:09]} {[%emt 00:00:01]} g5 {[%clk 00:17:23]} {[%emt 00:00:07]}
63. hxg5 {[%clk 00:03:13]} {[%emt 00:00:02]} h4 {[%clk 00:17:25]} {[%emt
00:00:03]} 64. Be1 {[%clk 00:03:16]} {[%emt 00:00:01]} h3 {[%clk 00:17:26]}
{[%emt 00:00:04]} 65. Bg3 {[%clk 00:03:19]} {[%emt 00:00:02]} Kg6 {[%clk
00:17:28]} {[%emt 00:00:04]} 66. Bf4 {[%clk 00:03:22]} {[%emt 00:00:02]} Kf5
{[%clk 00:17:20]} {[%emt 00:00:12]} 67. Ke7 {[%clk 00:03:18]} {[%emt 00:00:08]}
h2 {[%clk 00:17:20]} {[%emt 00:00:05]} 68. Bxh2 {[%clk 00:03:21]} {[%emt
00:00:02]} Kxg5 {[%clk 00:17:24]} {[%emt 00:00:01]} 69. Kxe6 {[%clk 00:03:25]}
{[%emt 00:00:02]} Kg6 {[%clk 00:17:28]} {[%emt 00:00:02]} 70. Kxd5 {[%clk
00:03:27]} {[%emt 00:00:02]} Kf7 {[%clk 00:17:31]} {[%emt 00:00:01]} 71. Kxe4
{[%clk 00:03:30]} {[%emt 00:00:03]} Ke6 {[%clk 00:17:33]} {[%emt 00:00:02]} 72.
d5+ {[%clk 00:03:34]} {[%emt 00:00:02]} Ke7 {[%clk 00:17:37]} {[%emt 00:00:01]}
73. e6 {[%emt 00:00:07]} 1-0

[Event "MCR rapid mládeže 2023 U16"]
[Site "Harachov, Czech Republic"]
[Date "2023.09.09"]
[Round "4.32"]
[White "Mauric, Jan"]
[Black "Dlouhy, Martin"]
[Result "1-0"]
[TimeControl "20min+5s/move"]
[WhiteElo "1260"]
[BlackElo "1193"]

1. d4 {[%clk 00:19:10]} {[%emt 00:00:59]} Nf6 {[%clk 00:20:06]} {[%emt
00:00:04]} 2. Bf4 {[%clk 00:19:02]} {[%emt 00:00:13]} d5 {[%clk 00:19:56]}
{[%emt 00:00:15]} 3. Nf3 {[%clk 00:19:05]} {[%emt 00:00:02]} e6 {[%clk
00:19:51]} {[%emt 00:00:10]} 4. e3 {[%clk 00:19:09]} {[%emt 00:00:01]} c5
{[%clk 00:19:52]} {[%emt 00:00:04]} 5. c3 {[%clk 00:18:49]} {[%emt 00:00:25]}
Nc6 {[%clk 00:19:55]} {[%emt 00:00:02]} 6. Bb5 {[%clk 00:18:47]} {[%emt
00:00:07]} Bd7 {[%clk 00:19:56]} {[%emt 00:00:04]} 7. Nbd2 {[%clk 00:18:23]}
{[%emt 00:00:28]} h6 {[%clk 00:19:44]} {[%emt 00:00:17]} 8. Bxc6 {[%clk
00:17:58]} {[%emt 00:00:31]} Bxc6 {[%clk 00:19:47]} {[%emt 00:00:02]} 9. Ne5
{[%clk 00:18:00]} {[%emt 00:00:03]} Bd7 {[%clk 00:19:42]} {[%emt 00:00:10]} 10.
Nxd7 {[%clk 00:17:45]} {[%emt 00:00:20]} Qxd7 {[%clk 00:19:43]} {[%emt
00:00:04]} 11. O-O {[%clk 00:17:43]} {[%emt 00:00:07]} Be7 {[%clk 00:19:39]}
{[%emt 00:00:09]} 12. dxc5 {[%clk 00:17:10]} {[%emt 00:00:38]} Bxc5 {[%clk
00:19:41]} {[%emt 00:00:02]} 13. Nb3 {[%clk 00:17:14]} {[%emt 00:00:02]} Bd6
{[%clk 00:19:36]} {[%emt 00:00:09]} 14. Bxd6 {[%clk 00:16:56]} {[%emt
00:00:24]} Qxd6 {[%clk 00:19:39]} {[%emt 00:00:02]} 15. c4 {[%clk 00:16:56]}
{[%emt 00:00:05]} O-O {[%clk 00:19:28]} {[%emt 00:00:15]} 16. cxd5 {[%clk
00:16:39]} {[%emt 00:00:23]} Qxd5 {[%clk 00:19:22]} {[%emt 00:00:10]} 17. Rc1
{[%clk 00:16:29]} {[%emt 00:00:16]} Rac8 {[%clk 00:19:17]} {[%emt 00:00:09]} 18.
Qe2 {[%clk 00:16:06]} {[%emt 00:00:28]} Qd6 {[%clk 00:18:42]} {[%emt 00:00:40]}
19. Rfd1 {[%clk 00:16:03]} {[%emt 00:00:09]} Qb6 {[%clk 00:18:40]} {[%emt
00:00:07]} 20. Rc2 {[%clk 00:15:14]} {[%emt 00:00:54]} Rxc2 {[%clk 00:18:26]}
{[%emt 00:00:19]} 21. Qxc2 {[%clk 00:15:17]} {[%emt 00:00:02]} Rd8 {[%clk
00:18:25]} {[%emt 00:00:05]} 22. g3 {[%clk 00:14:15]} {[%emt 00:01:08]} Rxd1+
{[%clk 00:17:57]} {[%emt 00:00:33]} 23. Qxd1 {[%clk 00:14:18]} {[%emt
00:00:02]} Nd5 {[%clk 00:17:45]} {[%emt 00:00:17]} 24. Qd4 {[%clk 00:12:41]}
{[%emt 00:01:42]} Qxd4 {[%clk 00:17:33]} {[%emt 00:00:17]} 25. Nxd4 {[%clk
00:12:45]} {[%emt 00:00:02]} Kf8 {[%clk 00:17:29]} {[%emt 00:00:08]} 26. Kf1
{[%clk 00:12:45]} {[%emt 00:00:05]} Ke7 {[%clk 00:17:27]} {[%emt 00:00:06]} 27.
Ke2 {[%clk 00:12:48]} {[%emt 00:00:02]} a6 {[%clk 00:17:24]} {[%emt 00:00:09]}
28. a3 {[%clk 00:11:56]} {[%emt 00:00:57]} e5 {[%clk 00:17:25]} {[%emt
00:00:04]} 29. Nf3 {[%clk 00:11:34]} {[%emt 00:00:26]} f6 {[%clk 00:17:26]}
{[%emt 00:00:04]} 30. h4 {[%clk 00:11:17]} {[%emt 00:00:22]} g6 {[%clk
00:17:26]} {[%emt 00:00:05]} 31. Nd2 {[%clk 00:11:09]} {[%emt 00:00:14]} b5
{[%clk 00:17:22]} {[%emt 00:00:08]} 32. Kd3 {[%clk 00:10:25]} {[%emt 00:00:49]}
Kd6 {[%clk 00:17:18]} {[%emt 00:00:09]} 33. Ne4+ {[%clk 00:10:27]} {[%emt
00:00:04]} Ke6 {[%clk 00:17:13]} {[%emt 00:00:04]} 34. Nc5+ {[%clk 00:10:24]}
{[%emt 00:00:14]} Kd6 {[%clk 00:17:07]} {[%emt 00:00:11]} 35. Nxa6 {[%clk
00:10:11]} {[%emt 00:00:18]} Kc6 {[%clk 00:16:53]} {[%emt 00:00:18]} 36. b4
{[%clk 00:10:15]} {[%emt 00:00:02]} f5 {[%clk 00:16:40]} {[%emt 00:00:18]} 37.
Nc5 {[%clk 00:08:10]} {[%emt 00:02:11]} Kd6 {[%clk 00:16:39]} {[%emt 00:00:04]}
38. e4 {[%clk 00:07:52]} {[%emt 00:00:24]} fxe4+ {[%clk 00:16:10]} {[%emt
00:00:34]} 39. Nxe4+ {[%clk 00:07:54]} {[%emt 00:00:03]} Ke6 {[%clk 00:16:10]}
{[%emt 00:00:04]} 40. f3 {[%clk 00:06:51]} {[%emt 00:01:09]} Nb6 {[%clk
00:16:09]} {[%emt 00:00:06]} 41. Nc3 {[%clk 00:06:41]} {[%emt 00:00:15]} Kd6
{[%clk 00:15:38]} {[%emt 00:00:36]} 42. Nxb5+ {[%clk 00:06:34]} {[%emt
00:00:12]} Kc6 {[%clk 00:15:39]} {[%emt 00:00:03]} 43. Nc3 {[%clk 00:06:38]}
{[%emt 00:00:02]} Nd7 {[%clk 00:15:33]} {[%emt 00:00:11]} 44. g4 {[%clk
00:05:10]} {[%emt 00:01:33]} Nf8 {[%clk 00:14:56]} {[%emt 00:00:41]} 45. Ke4
{[%clk 00:04:08]} {[%emt 00:01:08]} Nd7 {[%clk 00:14:51]} {[%emt 00:00:09]} 46.
Nd5 {[%clk 00:03:36]} {[%emt 00:00:37]} Kd6 {[%clk 00:14:15]} {[%emt 00:01:42]}
47. a4 {[%clk 00:02:26]} Kc6 {[%clk 00:14:12]} {[%emt 00:00:30]} 48. a5 Kb5
{[%emt 00:00:30]} 49. Ne7 {[%clk 00:02:04]} Kxb4 {[%clk 00:14:20]} 50. Nxg6
{[%clk 00:02:10]} Nf8 {[%clk 00:14:15]} 51. Nxe5 {[%clk 00:02:03]} Kxa5 {[%clk
00:14:18]} {[%emt 00:00:17]} 52. h5 {[%clk 00:02:05]} Kb5 {[%clk 00:14:20]}
{[%emt 00:00:06]} 53. Nf7 {[%clk 00:02:09]} Kc6 {[%clk 00:14:24]} 54. Nxh6
{[%clk 00:01:46]} Kd7 {[%clk 00:14:27]} {[%emt 00:00:29]} 55. Kf5 {[%clk
00:01:39]} Ke8 {[%clk 00:14:26]} {[%emt 00:00:18]} 56. Kf6 {[%clk 00:01:31]}
Nd7+ {[%clk 00:14:24]} {[%emt 00:00:20]} 57. Nf5 {[%clk 00:01:34]} Nf8 {[%clk
00:14:26]} {[%emt 00:00:04]} 58. Kg7 {[%clk 00:01:33]} Ne6+ {[%clk 00:14:29]}
{[%emt 00:00:09]} 59. h6 {[%clk 00:01:31]} Ng5 {[%clk 00:14:29]} {[%emt
00:00:11]} 60. Kg8 {[%clk 00:01:34]} Nh7 {[%clk 00:14:32]} {[%emt 00:00:05]}
1-0

[Event "MCR rapid mládeže 2023 U16"]
[Site "Harachov, Czech Republic"]
[Date "2023.09.09"]
[Round "4.33"]
[White "Zika, Miroslav"]
[Black "Velim, Vojtech"]
[Result "0-1"]
[TimeControl "20min+5s/move"]
[WhiteElo "1199"]
[BlackElo "1799"]

1. c4 {[%clk 00:20:09]} {[%emt 00:00:01]} e6 {[%clk 00:20:04]} {[%emt
00:00:06]} 2. Nf3 {[%clk 00:20:07]} {[%emt 00:00:07]} d5 {[%clk 00:20:07]}
{[%emt 00:00:01]} 3. e3 {[%clk 00:19:56]} {[%emt 00:00:16]} Nf6 {[%clk
00:20:09]} {[%emt 00:00:03]} 4. Nc3 {[%clk 00:19:59]} {[%emt 00:00:02]} c5
{[%clk 00:20:07]} {[%emt 00:00:08]} 5. cxd5 {[%clk 00:19:53]} {[%emt 00:00:12]}
exd5 {[%clk 00:20:09]} {[%emt 00:00:02]} 6. d4 {[%clk 00:19:48]} {[%emt
00:00:10]} Nc6 {[%clk 00:20:06]} {[%emt 00:00:08]} 7. Bb5 {[%clk 00:19:38]}
{[%emt 00:00:15]} a6 {[%clk 00:20:02]} {[%emt 00:00:10]} 8. Ba4 {[%clk
00:19:33]} {[%emt 00:00:09]} Bg4 {[%clk 00:19:53]} {[%emt 00:00:14]} 9. h3
{[%clk 00:19:20]} {[%emt 00:00:17]} Bh5 {[%clk 00:19:40]} {[%emt 00:00:18]} 10.
g4 {[%clk 00:19:09]} {[%emt 00:00:15]} Bg6 {[%clk 00:19:44]} {[%emt 00:00:01]}
11. Ne5 {[%clk 00:18:55]} {[%emt 00:00:19]} Qd6 {[%clk 00:15:40]} {[%emt
00:04:10]} 12. Nxc6 {[%clk 00:18:32]} {[%emt 00:00:28]} bxc6 {[%clk 00:15:39]}
{[%emt 00:00:05]} 13. dxc5 {[%clk 00:18:20]} {[%emt 00:00:18]} Qxc5 {[%clk
00:14:31]} {[%emt 00:01:13]} 14. Qd4 {[%clk 00:18:01]} {[%emt 00:00:23]} Rc8
{[%clk 00:13:08]} {[%emt 00:01:28]} 15. Bd2 {[%clk 00:17:39]} {[%emt 00:00:27]}
Qxd4 {[%clk 00:12:49]} {[%emt 00:00:25]} 16. exd4 {[%clk 00:17:35]} {[%emt
00:00:09]} Bb4 {[%clk 00:12:42]} {[%emt 00:00:11]} 17. f3 {[%clk 00:17:18]}
{[%emt 00:00:23]} O-O {[%clk 00:12:31]} {[%emt 00:00:15]} 18. Kf2 {[%clk
00:17:07]} {[%emt 00:00:17]} c5 {[%clk 00:11:57]} {[%emt 00:00:39]} 19. dxc5
{[%clk 00:16:54]} {[%emt 00:00:17]} d4 {[%clk 00:11:52]} {[%emt 00:00:10]} 20.
Nb1 {[%clk 00:16:41]} {[%emt 00:00:19]} Bxc5 {[%clk 00:11:54]} {[%emt
00:00:04]} 21. Kg3 {[%clk 00:16:33]} {[%emt 00:00:12]} Nd5 {[%clk 00:11:24]}
{[%emt 00:00:34]} 22. Re1 {[%clk 00:16:26]} {[%emt 00:00:13]} Bd6+ {[%clk
00:07:21]} {[%emt 00:04:08]} 23. Kg2 {[%clk 00:16:01]} {[%emt 00:00:28]} Bc2
{[%clk 00:06:38]} {[%emt 00:00:50]} 24. Bd7 {[%clk 00:15:49]} {[%emt 00:00:17]}
Rc7 {[%clk 00:06:29]} {[%emt 00:00:13]} 25. Bf5 {[%clk 00:15:19]} {[%emt
00:00:36]} Bxf5 {[%clk 00:06:33]} {[%emt 00:00:02]} 26. gxf5 {[%clk 00:15:23]}
Rc2 {[%clk 00:06:36]} {[%emt 00:00:02]} 27. Rc1 {[%clk 00:14:09]} {[%emt
00:01:18]} Rfc8 {[%clk 00:05:42]} {[%emt 00:00:58]} 28. Na3 {[%clk 00:13:54]}
{[%emt 00:00:21]} Rxd2+ {[%clk 00:05:42]} {[%emt 00:00:05]} 29. Kf1 {[%clk
00:13:32]} {[%emt 00:00:27]} Rxc1+ {[%clk 00:05:18]} {[%emt 00:00:28]} 30. Rxc1
{[%clk 00:13:35]} {[%emt 00:00:03]} Bxa3 {[%clk 00:05:18]} {[%emt 00:00:05]} 31.
bxa3 {[%clk 00:13:37]} {[%emt 00:00:02]} Nc3 {[%clk 00:05:17]} {[%emt
00:00:06]} 32. Ke1 {[%clk 00:13:23]} {[%emt 00:00:19]} Re2+ {[%clk 00:05:18]}
{[%emt 00:00:05]} 33. Kf1 {[%clk 00:13:21]} {[%emt 00:00:07]} Rxa2 {[%clk
00:05:21]} {[%emt 00:00:02]} 34. Re1 {[%clk 00:13:20]} {[%emt 00:00:06]} Kf8
{[%clk 00:05:18]} {[%emt 00:00:07]} 35. h4 {[%clk 00:12:55]} {[%emt 00:00:31]}
d3 {[%clk 00:05:11]} {[%emt 00:00:11]} 36. h5 {[%clk 00:12:51]} {[%emt
00:00:09]} d2 {[%clk 00:05:14]} {[%emt 00:00:03]} 37. h6 {[%clk 00:12:39]}
{[%emt 00:00:17]} Rc2 {[%clk 00:04:45]} {[%emt 00:00:34]} 38. Re8+ {[%clk
00:12:06]} {[%emt 00:00:38]} Kxe8 {[%clk 00:04:48]} {[%emt 00:00:02]} 39. hxg7
{[%clk 00:12:09]} {[%emt 00:00:02]} d1=R# {[%clk 00:04:49]} {[%emt 00:00:04]}
0-1

[Event "MCR rapid mládeže 2023 U16"]
[Site "Harachov, Czech Republic"]
[Date "2023.09.09"]
[Round "4.34"]
[White "Tomes, Jan"]
[Black "Vorlik, Jachym"]
[Result "0-1"]
[TimeControl "20min+5s/move"]
[WhiteElo "1050"]
[BlackElo "1210"]

1. e4 {[%clk 00:20:07]} e6 {[%clk 00:20:07]} {[%emt 00:00:03]} 2. d4 {[%clk
00:20:09]} {[%emt 00:00:04]} d5 {[%clk 00:19:57]} {[%emt 00:00:15]} 3. Nc3
{[%clk 00:20:02]} {[%emt 00:00:11]} Bb4 {[%clk 00:19:59]} {[%emt 00:00:03]} 4.
Bd2 {[%clk 00:20:05]} {[%emt 00:00:03]} Bxc3 {[%clk 00:19:57]} {[%emt
00:00:07]} 5. Bxc3 {[%clk 00:20:06]} {[%emt 00:00:04]} dxe4 {[%clk 00:19:52]}
{[%emt 00:00:09]} 6. f3 {[%clk 00:19:50]} {[%emt 00:00:22]} exf3 {[%clk
00:19:36]} {[%emt 00:00:21]} 7. Nxf3 {[%clk 00:19:53]} {[%emt 00:00:01]} Nf6
{[%clk 00:19:31]} {[%emt 00:00:11]} 8. Bd3 {[%clk 00:19:51]} {[%emt 00:00:07]}
O-O {[%clk 00:19:30]} {[%emt 00:00:06]} 9. O-O {[%clk 00:19:52]} {[%emt
00:00:04]} Nbd7 {[%clk 00:18:45]} {[%emt 00:00:50]} 10. Qd2 {[%clk 00:19:20]}
{[%emt 00:00:37]} c5 {[%clk 00:18:24]} {[%emt 00:00:26]} 11. dxc5 {[%clk
00:18:36]} {[%emt 00:00:49]} Nxc5 {[%clk 00:17:55]} {[%emt 00:00:33]} 12. Bb4
{[%clk 00:18:39]} {[%emt 00:00:03]} b6 {[%clk 00:17:39]} {[%emt 00:00:21]} 13.
Rad1 {[%clk 00:17:19]} {[%emt 00:01:24]} Bb7 {[%clk 00:17:07]} {[%emt
00:00:36]} 14. Qg5 {[%clk 00:14:28]} {[%emt 00:02:52]} Bxf3 {[%clk 00:16:22]}
{[%emt 00:00:55]} 15. Rxf3 {[%clk 00:14:14]} {[%emt 00:00:19]} Qd4+ {[%clk
00:13:59]} {[%emt 00:02:28]} 16. Kh1 {[%clk 00:13:28]} {[%emt 00:00:50]} Qxb4
{[%clk 00:13:29]} {[%emt 00:00:36]} 17. Rxf6 {[%clk 00:13:12]} {[%emt
00:00:21]} Qxb2 {[%clk 00:13:25]} {[%emt 00:00:08]} 18. Rf3 {[%clk 00:09:43]}
{[%emt 00:03:20]} Nxd3 {[%clk 00:12:46]} {[%emt 00:00:59]} 19. Rfxd3 {[%clk
00:09:26]} {[%emt 00:00:23]} Qxc2 {[%clk 00:12:20]} {[%emt 00:00:31]} 20. h3
{[%clk 00:08:17]} {[%emt 00:01:13]} Qxa2 {[%clk 00:11:58]} {[%emt 00:00:27]} 21.
Kh2 {[%clk 00:07:41]} {[%emt 00:00:41]} Qf2 {[%clk 00:09:53]} {[%emt 00:02:09]}
22. Rd8 {[%clk 00:07:22]} {[%emt 00:00:25]} Qc5 {[%clk 00:09:24]} {[%emt
00:00:33]} 23. Qh4 {[%clk 00:04:30]} {[%emt 00:02:41]} Qc7+ {[%clk 00:09:09]}
{[%emt 00:00:37]} 24. R8d6 {[%clk 00:04:21]} {[%emt 00:00:15]} a5 {[%clk
00:08:28]} {[%emt 00:00:45]} 25. Kh1 {[%clk 00:03:36]} {[%emt 00:00:49]} Qc5
{[%clk 00:07:42]} {[%emt 00:00:43]} 26. Rd8 {[%clk 00:02:44]} {[%emt 00:01:05]}
Raxd8 {[%clk 00:07:38]} {[%emt 00:00:10]} 27. Rxd8 {[%clk 00:02:42]} {[%emt
00:00:07]} Qc1+ {[%clk 00:07:36]} {[%emt 00:00:06]} 28. Kh2 {[%clk 00:02:27]}
{[%emt 00:00:20]} Qc7+ {[%clk 00:07:39]} {[%emt 00:00:03]} 29. g3 {[%clk
00:02:06]} {[%emt 00:00:26]} Qxd8 {[%clk 00:07:40]} {[%emt 00:00:04]} 30. Qf4
{[%clk 00:01:57]} {[%emt 00:00:13]} Qb8 {[%clk 00:07:32]} {[%emt 00:00:13]} 31.
Qd2 {[%clk 00:01:54]} {[%emt 00:00:08]} Rd8 {[%clk 00:07:32]} {[%emt 00:00:05]}
32. Qe2 {[%clk 00:01:55]} {[%emt 00:00:04]} Qd6 {[%clk 00:07:26]} {[%emt
00:00:11]} 33. Qg2 {[%clk 00:01:21]} {[%emt 00:00:38]} Qd2 {[%clk 00:07:27]}
{[%emt 00:00:06]} 34. Qxd2 {[%clk 00:01:24]} {[%emt 00:00:02]} Rxd2+ {[%emt
00:00:04]} 35. Kg1 {[%clk 00:01:24]} {[%emt 00:00:04]} b5 {[%clk 00:07:30]}
{[%emt 00:00:04]} 36. Kf1 {[%clk 00:01:25]} {[%emt 00:00:03]} b4 {[%clk
00:07:33]} {[%emt 00:00:02]} 37. Ke1 {[%clk 00:01:29]} Ra2 {[%clk 00:07:36]}
{[%emt 00:00:04]} 38. Kd1 {[%clk 00:01:33]} b3 {[%clk 00:07:40]} {[%emt
00:00:02]} 39. Kc1 {[%clk 00:01:35]} {[%emt 00:00:02]} Rc2+ {[%clk 00:07:42]}
{[%emt 00:00:03]} 40. Kb1 {[%clk 00:01:39]} {[%emt 00:00:01]} e5 {[%clk
00:07:27]} {[%emt 00:00:20]} 41. g4 {[%clk 00:01:39]} {[%emt 00:00:05]} e4
{[%clk 00:07:31]} 42. g5 {[%clk 00:01:34]} {[%emt 00:00:09]} e3 {[%clk
00:07:34]} {[%emt 00:00:02]} 43. h4 {[%clk 00:01:38]} {[%emt 00:00:01]} e2
{[%clk 00:07:37]} {[%emt 00:00:02]} 44. g6 {[%clk 00:01:42]} {[%emt 00:00:01]}
e1=Q# {[%clk 00:07:39]} {[%emt 00:00:04]} 0-1